fUST/lending_fUST_20250704
["ID","MTS","AMOUNT","RATE_DAILY","PERIOD"]
[369527514,1751609444176,-551.56929319,0.00016712,2]
[369527516,1751609444186,-558.77184396,0.00016712,2]
[369527518,1751609444196,-460.0,0.00016712,2]
[369527520,1751609444207,-460.0,0.00016712,2]
[369527522,1751609444217,-611.81,0.00016712,2]
[369527524,1751609444227,-572.24,0.00016712,2]
[369527526,1751609444237,-500.0,0.00016712,2]
[369527528,1751609444248,-500.0,0.00016712,2]
[369527530,1751609444258,-328.21502439,0.00016712,2]
[369527532,1751609444268,-460.0,0.00016712,2]
[369527547,1751609444411,-460.0,0.00016712,2]
[369527549,1751609444421,-540.0,0.00016712,2]
[369527551,1751609444432,-491.1,0.00016712,2]
[369527553,1751609444442,-460.0,0.00016712,2]
[369527555,1751609444451,-460.0,0.00016712,2]
[369527557,1751609444461,-460.0,0.00016712,2]
[369527559,1751609444471,-502.72190173,0.00016712,2]
[369527561,1751609444482,-540.0,0.00016712,2]
[369527563,1751609444492,-460.0,0.00016712,2]
[369527565,1751609444502,-460.0,0.00016712,2]
[369527567,1751609444512,-460.0,0.00016712,2]
[369527569,1751609444522,-460.0,0.00016712,2]
[369527571,1751609444532,-460.0,0.00016712,2]
[369527573,1751609444542,-460.0,0.00016712,2]
[369527575,1751609444554,-460.0,0.00016712,2]
[369527577,1751609444563,-460.0,0.00016712,2]
[369527579,1751609444573,-553.03,0.00016712,2]
[369527581,1751609444583,-460.0,0.00016712,2]
[369527583,1751609444594,-151.0,0.00016712,2]
[369527585,1751609444605,-460.0,0.00016712,2]
[369527587,1751609444615,-200.0,0.00016712,2]
[369527589,1751609444625,-460.0,0.00016712,2]
[369527591,1751609444635,-380.77018478,0.00016712,2]
[369527593,1751609444644,-460.0,0.00016712,2]
[369527595,1751609444654,-460.0,0.00016712,2]
[369527597,1751609444664,-460.0,0.00016712,2]
[369527599,1751609444674,-460.0,0.00016712,2]
[369527601,1751609444684,-427.61415118,0.00016712,2]
[369527603,1751609444693,-460.0,0.00016712,2]
[369527605,1751609444703,-460.0,0.00016712,2]
[369527607,1751609444712,-460.0,0.00016712,2]
[369527609,1751609444722,-448.35213486,0.00016712,2]
[369527611,1751609444731,-460.0,0.00016712,2]
[369527613,1751609444741,-460.0,0.00016712,2]
[369527614,1751609444750,-392.66,0.00016712,2]
[369527616,1751609444761,-460.0,0.00016712,2]
[369527618,1751609444770,-460.0,0.00016712,2]
[369527620,1751609444780,-460.0,0.00016712,2]
[369527622,1751609444790,-460.0,0.00016712,2]
[369527624,1751609444800,-460.0,0.00016712,2]
[369527626,1751609444810,-401.58139365,0.00016712,2]
[369527628,1751609444820,-460.0,0.00016712,2]
[369527630,1751609444830,-460.0,0.00016712,2]
[369527632,1751609444840,-183.46305526,0.00016712,2]
[369527634,1751609444850,-460.0,0.00016712,2]
[369527636,1751609444860,-500.0,0.00016712,2]
[369527638,1751609444870,-499.05522411,0.00016712,2]
[369527640,1751609444881,-511.3460106,0.00016712,2]
[369527642,1751609444891,-816.51,0.00016712,2]
[369527644,1751609444901,-460.0,0.00016712,2]
[369527646,1751609444911,-540.0,0.00016712,2]
[369527648,1751609444920,-460.0,0.00016712,2]
[369527650,1751609444930,-494.06,0.00016712,2]
[369527652,1751609444940,-500.0,0.00016712,2]
[369527654,1751609444949,-460.0,0.00016712,2]
[369527655,1751609444959,-460.0,0.00016712,2]
[369527658,1751609444969,-460.0,0.00016712,2]
[369527659,1751609444979,-460.0,0.00016712,2]
[369527661,1751609444989,-460.0,0.00016712,2]
[369527663,1751609444998,-460.0,0.00016712,2]
[369527665,1751609445008,-678.45,0.00016712,2]
[369527667,1751609445018,-460.0,0.00016712,2]
[369527669,1751609445028,-460.0,0.00016712,2]
[369527671,1751609445038,-460.0,0.00016712,2]
[369527673,1751609445048,-449.16749657,0.00016712,2]
[369527675,1751609445059,-460.0,0.00016712,2]
[369527677,1751609445068,-1188.13,0.00016712,2]
[369527679,1751609445078,-540.94,0.00016712,2]
[369527681,1751609445087,-4181.36,0.00016712,2]
[369527683,1751609445097,-500.0,0.00016712,2]
[369527685,1751609445107,-460.0,0.00016712,2]
[369527687,1751609445116,-151.0,0.00016712,2]
[369527689,1751609445126,-460.0,0.00016712,2]
[369527691,1751609445135,-460.0,0.00016712,2]
[369527693,1751609445145,-460.0,0.00016712,2]
[369527695,1751609445155,-298.2921009,0.00016712,2]
[369527697,1751609445165,-1048.3,0.00016712,2]
[369527699,1751609445175,-460.0,0.00016712,2]
[369527701,1751609445184,-460.0,0.00016712,2]
[369527703,1751609445194,-460.0,0.00016712,2]
[369527705,1751609445204,-540.0,0.00016712,2]
[369527707,1751609445214,-201.744832,0.00016712,2]
[369527709,1751609445225,-460.0,0.00016712,2]
[369527711,1751609445235,-460.0,0.00016712,2]
[369527713,1751609445245,-151.0,0.00016712,2]
[369527715,1751609445254,-201.744832,0.00016712,2]
[369527717,1751609445265,-411.41,0.00016712,2]
[369527719,1751609445275,-460.0,0.00016712,2]
[369527721,1751609445286,-460.0,0.00016712,2]
[369527723,1751609445295,-460.0,0.00016712,2]
[369527725,1751609445306,-500.0,0.00016712,2]
[369527727,1751609445315,-151.0,0.00016712,2]
[369527729,1751609445325,-545.2,0.00016712,2]
[369527731,1751609445335,-418.62,0.00016712,2]
[369527732,1751609445345,-460.0,0.00016712,2]
[369527734,1751609445354,-414.42538936,0.00016712,2]
[369527736,1751609445364,-460.0,0.00016712,2]
[369527738,1751609445374,-460.0,0.00016712,2]
[369527740,1751609445384,-846.14,0.00016712,2]
[369527742,1751609445395,-460.0,0.00016712,2]
[369527744,1751609445405,-460.0,0.00016712,2]
[369527746,1751609445415,-540.0,0.00016712,2]
[369527748,1751609445425,-151.0,0.00016712,2]
[369527750,1751609445435,-460.0,0.00016712,2]
[369527754,1751609445456,-713.08,0.00016712,2]
[369527756,1751609445469,-151.0,0.00016712,2]
[369527758,1751609445480,-460.0,0.00016712,2]
[369527760,1751609445491,-460.0,0.00016712,2]
[369527762,1751609445502,-460.0,0.00016712,2]
[369527764,1751609445513,-151.0,0.00016712,2]
[369527766,1751609445524,-1491.37,0.00016712,2]
[369527768,1751609445535,-460.0,0.00016712,2]
[369527770,1751609445547,-220.679372,0.00016712,2]
[369527773,1751609445559,-460.0,0.00016712,2]
[369527775,1751609445569,-609.04,0.00016712,2]
[369527776,1751609445579,-460.0,0.00016712,2]
[369527777,1751609445590,-151.217678,0.00016712,2]
[369527779,1751609445603,-460.0,0.00016712,2]
[369527781,1751609445613,-2257.35,0.00016712,2]
[369527783,1751609445625,-460.0,0.00016712,2]
[369527785,1751609445635,-1361.46,0.00016712,2]
[369527787,1751609445647,-542.19391986,0.00016712,2]
[369527789,1751609445657,-502.61726036,0.00016712,2]
[369527791,1751609445667,-1155.94,0.00016712,2]
[369527793,1751609445679,-460.0,0.00016712,2]
[369527795,1751609445690,-460.0,0.00016712,2]
[369527797,1751609445700,-151.0,0.00016712,2]
[369527799,1751609445711,-460.0,0.00016712,2]
[369527801,1751609445721,-460.0,0.00016712,2]
[369527803,1751609445731,-1827.25,0.00016712,2]
[369527805,1751609445741,-465.81277191,0.00016712,2]
[369527806,1751609445752,-151.0,0.00016712,2]
[369527808,1751609445762,-460.0,0.00016712,2]
[369527810,1751609445772,-460.0,0.00016712,2]
[369527811,1751609445783,-460.0,0.00016712,2]
[369527812,1751609445794,-460.0,0.00016712,2]
[369527813,1751609445804,-460.0,0.00016712,2]
[369527814,1751609445814,-460.0,0.00016712,2]
[369527815,1751609445824,-460.0,0.00016712,2]
[369527816,1751609445835,-2956.92,0.00016712,2]
[369527817,1751609445846,-151.0,0.00016712,2]
[369527818,1751609445856,-460.0,0.00016712,2]
[369527819,1751609445866,-500.0,0.00016712,2]
[369527820,1751609445877,-151.0,0.00016712,2]
[369527821,1751609445888,-460.0,0.00016712,2]
[369527823,1751609445898,-523.74025087,0.00016712,2]
[369527825,1751609445909,-465.83426615,0.00016712,2]
[369527827,1751609445919,-374.30685836,0.00016712,2]
[369527829,1751609445929,-151.0,0.00016712,2]
[369527831,1751609445938,-460.0,0.00016712,2]
[369527832,1751609445948,-460.0,0.00016712,2]
[369527834,1751609445958,-151.0,0.00016712,2]
[369527836,1751609445967,-151.0,0.00016712,2]
[369527838,1751609445977,-460.0,0.00016712,2]
[369527840,1751609445987,-460.0,0.00016712,2]
[369527842,1751609445997,-460.0,0.00016712,2]
[369527843,1751609446007,-460.0,0.00016712,2]
[369527845,1751609446017,-1523.04,0.00016712,2]
[369527847,1751609446027,-546.25314394,0.00016712,2]
[369527849,1751609446036,-907.3,0.00016712,2]
[369527851,1751609446047,-460.0,0.00016712,2]
[369527853,1751609446057,-460.0,0.00016712,2]
[369527856,1751609446072,-460.0,0.00016712,2]
[369527858,1751609446082,-460.0,0.00016712,2]
[369527860,1751609446092,-577.52,0.00016712,2]
[369527862,1751609446102,-625.62,0.00016712,2]
[369527864,1751609446112,-460.0,0.00016712,2]
[369527866,1751609446123,-460.0,0.00016712,2]
[369527868,1751609446133,-460.0,0.00016712,2]
[369527870,1751609446143,-460.0,0.00016712,2]
[369527872,1751609446153,-540.0,0.00016712,2]
[369527874,1751609446163,-460.0,0.00016712,2]
[369527876,1751609446174,-722.11,0.00016712,2]
[369527878,1751609446184,-553.95712316,0.00016712,2]
[369527881,1751609446194,-460.0,0.00016712,2]
[369527884,1751609446204,-1962.27,0.00016712,2]
[369527888,1751609446215,-2810.99,0.00016712,2]
[369527892,1751609446226,-570.45735849,0.00016712,2]
[369527895,1751609446236,-460.0,0.00016712,2]
[369527898,1751609446246,-460.0,0.00016712,2]
[369527900,1751609446255,-460.0,0.00016712,2]
[369527903,1751609446266,-460.0,0.00016712,2]
[369527906,1751609446276,-460.0,0.00016712,2]
[369527909,1751609446285,-460.0,0.00016712,2]
[369527912,1751609446296,-460.0,0.00016712,2]
[369527915,1751609446305,-460.0,0.00016712,2]
[369527919,1751609446315,-540.0,0.00016712,2]
[369527922,1751609446326,-460.0,0.00016712,2]
[369527925,1751609446335,-460.0,0.00016712,2]
[369527942,1751609446416,-566.70916388,0.00016712,2]
[369527945,1751609446426,-540.0,0.00016712,2]
[369527948,1751609446436,-460.0,0.00016712,2]
[369527951,1751609446445,-2361.84,0.00016712,2]
[369527954,1751609446455,-1133.29,0.00016712,2]
[369527957,1751609446465,-460.0,0.00016712,2]
[369527960,1751609446475,-465.89611115,0.00016712,2]
[369527963,1751609446486,-810.11,0.00016712,2]
[369527966,1751609446496,-514.62,0.00016712,2]
[369527969,1751609446506,-460.0,0.00016712,2]
[369527972,1751609446516,-460.0,0.00016712,2]
[369527975,1751609446526,-460.0,0.00016712,2]
[369527978,1751609446536,-460.0,0.00016712,2]
[369527981,1751609446546,-460.0,0.00016712,2]
[369527983,1751609446556,-460.0,0.00016712,2]
[369527985,1751609446565,-460.0,0.00016712,2]
[369527987,1751609446576,-3445.22,0.00016712,2]
[369527989,1751609446586,-460.0,0.00016712,2]
[369527991,1751609446598,-675.92,0.00016712,2]
[369527993,1751609446608,-500.0,0.00016712,2]
[369527995,1751609446617,-460.0,0.00016712,2]
[369527997,1751609446627,-1504.85,0.00016712,2]
[369527999,1751609446637,-460.0,0.00016712,2]
[369528001,1751609446646,-540.0,0.00016712,2]
[369528003,1751609446656,-166.771041,0.00016712,2]
[369528005,1751609446665,-460.0,0.00016712,2]
[369528007,1751609446675,-460.0,0.00016712,2]
[369528009,1751609446688,-460.0,0.00016712,2]
[369528011,1751609446697,-398.49371169,0.00016712,2]
[369528013,1751609446707,-1422.16,0.00016712,2]
[369528015,1751609446716,-460.0,0.00016712,2]
[369528017,1751609446726,-1644.99,0.00016712,2]
[369528019,1751609446735,-188.241332,0.00016712,2]
[369528021,1751609446745,-460.0,0.00016712,2]
[369528024,1751609446761,-463.64326109,0.00016712,2]
[369528026,1751609446771,-460.0,0.00016712,2]
[369528028,1751609446781,-543.94790782,0.00016712,2]
[369528030,1751609446793,-188.241332,0.00016712,2]
[369528032,1751609446803,-1179.83,0.00016712,2]
[369528034,1751609446813,-1590.3,0.00016712,2]
[369528036,1751609446822,-564.43,0.00016712,2]
[369528038,1751609446832,-545.1251016,0.00016712,2]
[369528040,1751609446841,-174.36272413,0.00016712,2]
[369528042,1751609446851,-277.86314646,0.00016712,2]
[369528044,1751609446861,-151.0,0.00016712,2]
[369528046,1751609446871,-460.0,0.00016712,2]
[369528049,1751609446881,-460.0,0.00016712,2]
[369528051,1751609446895,-460.0,0.00016712,2]
[369528053,1751609446906,-460.0,0.00016712,2]
[369528055,1751609446915,-460.0,0.00016712,2]
[369528057,1751609446925,-460.0,0.00016712,2]
[369528059,1751609446935,-460.0,0.00016712,2]
[369528061,1751609446946,-460.0,0.00016712,2]
[369528063,1751609446955,-679.75,0.00016712,2]
[369528065,1751609446965,-460.0,0.00016712,2]
[369528067,1751609446974,-460.0,0.00016712,2]
[369528069,1751609446983,-460.0,0.00016712,2]
[369528071,1751609446993,-460.0,0.00016712,2]
[369528073,1751609447003,-193.57714833,0.00016712,2]
[369528075,1751609447012,-460.0,0.00016712,2]
[369528077,1751609447022,-460.0,0.00016712,2]
[369528079,1751609447031,-514.41,0.00016712,2]
[369528081,1751609447040,-854.49,0.00016712,2]
[369528083,1751609447050,-460.0,0.00016712,2]
[369528085,1751609447059,-4413.97,0.00016712,2]
[369528087,1751609447069,-460.0,0.00016712,2]
[369528088,1751609447079,-500.0,0.00016739,2]
[369528090,1751609447088,-500.0,0.00016739,2]
[369528092,1751609447097,-500.0,0.00016739,2]
[369528094,1751609447106,-151.30931743,0.00016739,2]
[369528096,1751609447117,-500.0,0.00016739,2]
[369528098,1751609447126,-338.97778751,0.00016749,2]
[369528100,1751609447136,-500.54134848,0.00016767,2]
[369528102,1751609447145,-501.59203912,0.00016767,2]
[369528104,1751609447155,-625.66499491,0.00016767,2]
[369528106,1751609447165,-502.30236165,0.00016767,2]
[369528108,1751609447176,-151.0,0.00016767,2]
[369528110,1751609447186,-151.0,0.00016767,2]
[369528112,1751609447195,-500.0,0.00016767,2]
[369528114,1751609447205,-151.0,0.00016794,2]
[369528116,1751609447214,-151.0,0.00016794,2]
[369528119,1751609447224,-503.61471498,0.00016794,2]
[369528121,1751609447234,-150.0,0.000168,2]
[369528123,1751609447244,-420.0,0.00016812,2]
[369528125,1751609447254,-155.99335727,0.00016822,2]
[369528127,1751609447266,-151.33614618,0.00016822,2]
[369528129,1751609447276,-338.97778751,0.00016955,2]
[369528130,1751609447285,-460.0,0.00016986,2]
[369528132,1751609447295,-460.0,0.00016986,2]
[369528134,1751609447304,-589.1,0.00016986,2]
[369528136,1751609447315,-180.44,0.00016986,2]
[369528138,1751609447324,-160.59,0.00016986,2]
[369528141,1751609447335,-460.0,0.00016986,2]
[369528143,1751609447345,-460.0,0.00016986,2]
[369528145,1751609447355,-460.0,0.00016986,2]
[369528147,1751609447364,-460.0,0.00016986,2]
[369528149,1751609447374,-460.0,0.00016986,2]
[369528151,1751609447385,-460.0,0.00016986,2]
[369528153,1751609447395,-288.02,0.00016986,2]
[369528155,1751609447405,-153.560647,0.00016986,2]
[369528157,1751609447415,-460.0,0.00016986,2]
[369528159,1751609447425,-460.0,0.00016986,2]
[369528161,1751609447435,-460.0,0.00016986,2]
[369528163,1751609447445,-253.2318598,0.00016986,2]
[369528165,1751609447455,-460.0,0.00016986,2]
[369528167,1751609447465,-553.47,0.00016986,2]
[369528169,1751609447475,-151.0,0.00016986,2]
[369528171,1751609447486,-460.0,0.00016986,2]
[369528173,1751609447496,-460.0,0.00016986,2]
[369528175,1751609447507,-460.0,0.00016986,2]
[369528177,1751609447516,-332.65632949,0.00016986,2]
[369528179,1751609447526,-460.0,0.00016986,2]
[369528181,1751609447536,-460.0,0.00016986,2]
[369528183,1751609447546,-151.0,0.00016986,2]
[369528185,1751609447556,-460.0,0.00016986,2]
[369528187,1751609447566,-439.96461952,0.00016986,2]
[369528189,1751609447576,-460.0,0.00016986,2]
[369528191,1751609447586,-250.09,0.00016986,2]
[369528193,1751609447598,-460.0,0.00016986,2]
[369528195,1751609447608,-555.23780746,0.00016986,2]
[369528197,1751609447618,-151.0,0.00016986,2]
[369528199,1751609447628,-460.0,0.00016986,2]
[369528201,1751609447639,-496.96,0.00016986,2]
[369528203,1751609447650,-460.0,0.00016986,2]
[369528205,1751609447660,-351.98976591,0.00016986,2]
[369528207,1751609447670,-460.0,0.00016986,2]
[369528210,1751609447680,-460.0,0.00016986,2]
[369528212,1751609447691,-460.0,0.00016986,2]
[369528214,1751609447701,-266.442378,0.00016986,2]
[369528216,1751609447711,-460.0,0.00016986,2]
[369528218,1751609447720,-151.0,0.00016986,2]
[369528220,1751609447731,-151.0,0.00016986,2]
[369528222,1751609447741,-460.0,0.00016986,2]
[369528224,1751609447752,-460.0,0.00016986,2]
[369528226,1751609447763,-611.81,0.00016986,2]
[369528228,1751609447772,-151.0,0.00016986,2]
[369528230,1751609447782,-572.24,0.00016986,2]
[369528232,1751609447793,-280.491531,0.00016986,2]
[369528234,1751609447803,-460.0,0.00016986,2]
[369528236,1751609447813,-460.0,0.00016986,2]
[369528238,1751609447824,-280.491531,0.00016986,2]
[369528240,1751609447835,-460.0,0.00016986,2]
[369528242,1751609447847,-342.28,0.00016986,2]
[369528244,1751609447858,-460.0,0.00016986,2]
[369528246,1751609447868,-460.0,0.00016986,2]
[369528248,1751609447880,-355.83161754,0.00016986,2]
[369528250,1751609447891,-460.0,0.00016986,2]
[369528252,1751609447901,-510.07508332,0.00016986,2]
[369528254,1751609447911,-460.0,0.00016986,2]
[369528256,1751609447922,-460.0,0.00016986,2]
[369528257,1751609447932,-301.45,0.00016986,2]
[369528260,1751609447944,-460.0,0.00016986,2]
[369528262,1751609447955,-460.0,0.00016986,2]
[369528264,1751609447966,-438.6133059,0.00016986,2]
[369528266,1751609447976,-460.0,0.00016986,2]
[369528268,1751609447986,-460.0,0.00016986,2]
[369528270,1751609447995,-460.0,0.00016986,2]
[369528272,1751609448006,-540.0,0.00016986,2]
[369528274,1751609448017,-460.0,0.00016986,2]
[369528276,1751609448027,-460.0,0.00016986,2]
[369528278,1751609448037,-151.0,0.00016986,2]
[369528280,1751609448046,-460.0,0.00016986,2]
[369528282,1751609448056,-460.0,0.00016986,2]
[369528284,1751609448067,-460.0,0.00016986,2]
[369528286,1751609448077,-545.30658399,0.00016986,2]
[369528288,1751609448088,-460.0,0.00016986,2]
[369528290,1751609448098,-460.0,0.00016986,2]
[369528293,1751609448109,-460.0,0.00016986,2]
[369528295,1751609448119,-460.0,0.00016986,2]
[369528297,1751609448129,-1260.327888,0.00016986,2]
[369528299,1751609448139,-1260.327888,0.00016986,2]
[369528301,1751609448149,-460.0,0.00016986,2]
[369528303,1751609448159,-460.0,0.00016986,2]
[369528305,1751609448170,-460.0,0.00016986,2]
[369528307,1751609448180,-816.51,0.00016986,2]
[369528309,1751609448190,-460.0,0.00016986,2]
[369528311,1751609448200,-247.25852756,0.00016986,2]
[369528313,1751609448211,-494.06,0.00016986,2]
[369528315,1751609448221,-460.0,0.00016986,2]
[369528317,1751609448232,-500.0,0.00016986,2]
[369528319,1751609448242,-460.0,0.00016986,2]
[369528321,1751609448252,-460.0,0.00016986,2]
[369528323,1751609448263,-460.0,0.00016986,2]
[369528325,1751609448273,-460.0,0.00016986,2]
[369528328,1751609448283,-678.45,0.00016986,2]
[369528330,1751609448294,-389.56,0.00016986,2]
[369528332,1751609448303,-460.0,0.00016986,2]
[369528334,1751609448313,-460.0,0.00016986,2]
[369528336,1751609448323,-291.78,0.00016986,2]
[369528338,1751609448334,-1188.13,0.00016986,2]
[369528340,1751609448344,-540.94,0.00016986,2]
[369528342,1751609448354,-4181.36,0.00016986,2]
[369528344,1751609448364,-460.0,0.00016986,2]
[369528346,1751609448374,-460.0,0.00016986,2]
[369528348,1751609448385,-526.88,0.00016986,2]
[369528350,1751609448395,-347.94,0.00016986,2]
[369528352,1751609448405,-1048.3,0.00016986,2]
[369528354,1751609448415,-460.0,0.00016986,2]
[369528356,1751609448425,-540.0,0.00016986,2]
[369528358,1751609448436,-460.0,0.00016986,2]
[369528360,1751609448446,-460.0,0.00016986,2]
[369528362,1751609448457,-307.43803393,0.00016986,2]
[369528364,1751609448467,-227.28,0.00016986,2]
[369528366,1751609448477,-460.0,0.00016986,2]
[369528368,1751609448488,-460.0,0.00016986,2]
[369528370,1751609448498,-151.0,0.00016986,2]
[369528373,1751609448510,-545.2,0.00016986,2]
[369528374,1751609448520,-460.0,0.00016986,2]
[369528375,1751609448530,-460.0,0.00016986,2]
[369528376,1751609448539,-846.14,0.00016986,2]
[369528377,1751609448550,-460.0,0.00016986,2]
[369528378,1751609448560,-460.0,0.00016986,2]
[369528379,1751609448570,-151.0,0.00016986,2]
[369528380,1751609448580,-713.08,0.00016986,2]
[369528381,1751609448590,-460.0,0.00016986,2]
[369528382,1751609448601,-151.0,0.00016986,2]
[369528383,1751609448615,-472.60810941,0.00016986,2]
[369528385,1751609448626,-460.0,0.00016986,2]
[369528387,1751609448635,-1491.37,0.00016986,2]
[369528389,1751609448646,-572.32,0.00016986,2]
[369528391,1751609448658,-460.0,0.00016986,2]
[369528393,1751609448668,-609.04,0.00016986,2]
[369528395,1751609448679,-491.71760817,0.00016986,2]
[369528398,1751609448692,-460.0,0.00016986,2]
[369528400,1751609448703,-2257.35,0.00016986,2]
[369528402,1751609448713,-460.0,0.00016986,2]
[369528404,1751609448723,-1361.46,0.00016986,2]
[369528406,1751609448732,-1155.94,0.00016986,2]
[369528408,1751609448743,-460.0,0.00016986,2]
[369528410,1751609448753,-447.02245973,0.00016986,2]
[369528412,1751609448764,-460.0,0.00016986,2]
[369528414,1751609448774,-1827.25,0.00016986,2]
[369528416,1751609448783,-151.0,0.00016986,2]
[369528418,1751609448794,-460.0,0.00016986,2]
[369528420,1751609448804,-460.0,0.00016986,2]
[369528422,1751609448814,-460.0,0.00016986,2]
[369528424,1751609448823,-460.0,0.00016986,2]
[369528426,1751609448833,-460.0,0.00016986,2]
[369528428,1751609448843,-2956.92,0.00016986,2]
[369528430,1751609448854,-500.0,0.00016986,2]
[369528433,1751609448864,-460.0,0.00016986,2]
[369528435,1751609448875,-460.0,0.00016986,2]
[369528437,1751609448885,-507.44065012,0.00016986,2]
[369528439,1751609448895,-151.0,0.00016986,2]
[369528441,1751609448905,-460.0,0.00016986,2]
[369528443,1751609448915,-460.0,0.00016986,2]
[369528445,1751609448925,-540.0,0.00016986,2]
[369528447,1751609448936,-493.27208825,0.00016986,2]
[369528449,1751609448946,-1523.04,0.00016986,2]
[369528451,1751609448957,-907.3,0.00016986,2]
[369528453,1751609448967,-460.0,0.00016986,2]
[369528455,1751609448976,-460.0,0.00016986,2]
[369528458,1751609448987,-460.0,0.00016986,2]
[369528460,1751609448997,-460.0,0.00016986,2]
[369528462,1751609449008,-577.52,0.00016986,2]
[369528464,1751609449018,-625.62,0.00016986,2]
[369528466,1751609449028,-460.0,0.00016986,2]
[369528468,1751609449039,-460.0,0.00016986,2]
[369528470,1751609449049,-460.0,0.00016986,2]
[369528472,1751609449060,-460.0,0.00016986,2]
[369528474,1751609449071,-722.11,0.00016986,2]
[369528477,1751609449082,-460.0,0.00016986,2]
[369528479,1751609449092,-1962.27,0.00016986,2]
[369528493,1751609449214,-2810.99,0.00016986,2]
[369528495,1751609449225,-163.3857959,0.00016986,2]
[369528497,1751609449235,-246.04,0.00016986,2]
[369528499,1751609449246,-460.0,0.00016986,2]
[369528501,1751609449256,-460.0,0.00016986,2]
[369528503,1751609449267,-460.0,0.00016986,2]
[369528505,1751609449276,-460.0,0.00016986,2]
[369528507,1751609449286,-460.0,0.00016986,2]
[369528509,1751609449297,-460.0,0.00016986,2]
[369528511,1751609449308,-2361.84,0.00016986,2]
[369528513,1751609449319,-1133.29,0.00016986,2]
[369528515,1751609449329,-460.0,0.00016986,2]
[369528517,1751609449338,-514.62,0.00016986,2]
[369528519,1751609449348,-349.8964706,0.00016986,2]
[369528521,1751609449358,-504.16641417,0.00016986,2]
[369528523,1751609449367,-810.11,0.00016986,2]
[369528525,1751609449377,-460.0,0.00016986,2]
[369528527,1751609449387,-460.0,0.00016986,2]
[369528530,1751609449397,-535.41552154,0.00016986,2]
[369528531,1751609449407,-3445.22,0.00016986,2]
[369528534,1751609449418,-675.92,0.00016986,2]
[369528536,1751609449428,-460.0,0.00016986,2]
[369528538,1751609449438,-460.0,0.00016986,2]
[369528540,1751609449448,-1504.85,0.00016986,2]
[369528542,1751609449458,-460.0,0.00016986,2]
[369528544,1751609449468,-500.0,0.00016986,2]
[369528546,1751609449477,-460.0,0.00016986,2]
[369528548,1751609449487,-460.0,0.00016986,2]
[369528550,1751609449496,-1422.16,0.00016986,2]
[369528552,1751609449506,-460.0,0.00016986,2]
[369528554,1751609449517,-1644.99,0.00016986,2]
[369528556,1751609449526,-188.241332,0.00016986,2]
[369528558,1751609449537,-460.0,0.00016986,2]
[369528560,1751609449547,-460.0,0.00016986,2]
[369528562,1751609449556,-188.241332,0.00016986,2]
[369528564,1751609449566,-1179.83,0.00016986,2]
[369528566,1751609449575,-1590.3,0.00016986,2]
[369528568,1751609449585,-564.43,0.00016986,2]